Cogmind - Beta 12 @@@ ROGUE MODE // 2023.12.16 @ 08:05:39 Player: arkn Result: Destroyed by G-34 Mercenary with Small Laser Performance ------------- Evolutions (0) 0 Regions Visited (1) 200 Robots Destroyed (18) 90 Value Destroyed (455) 455 Prototype IDs (0) 0 Alien Tech Used (0) 0 Bonus (0) 0 TOTAL SCORE: 745 Bonus ------- None Cogmind --------- Core Integrity 0/250 Matter 280/300 Energy 160/160 System Corruption 0% Temperature Cool (51) Movement Walking (190) Ox1 Location -10/Materials Parts ------- > --- POWER (1) -------- Light Nuclear Core > --- PROPULSION (2) --- Aluminum Leg Aluminum Leg > --- UTILITY (2) ------ Improved Heat Sink Large Storage Unit > --- WEAPON (2) ------- Particle Gun Light Cannon > --- INVENTORY (15) --- Ion Engine Aluminum Leg Aluminum Leg Huge Storage Unit Large Matter Pod (150) Structural Scanner Machine Analyzer Visual Processing Unit Sensor Array Signal Interpreter Targeting Computer ECM Suite Propulsion Shielding EM Pulse Gun Peak State ------------ > --- POWER ------------ Light Nuclear Core > --- PROPULSION ------- Aluminum Leg Aluminum Leg > --- UTILITY ---------- Improved Heat Sink Large Storage Unit > --- WEAPON ----------- Particle Gun Light Cannon > --- INVENTORY -------- Ion Engine Ion Engine Light Treads Light Treads Aluminum Leg Aluminum Leg Large Matter Pod Structural Scanner Visual Processing Unit Signal Interpreter Seismic Detector ECM Suite Propulsion Shielding Propulsion Shielding EM Pulse Gun [Rating: 13] Favorites ----------- Power Ion Engine Engine Ion Engine Power Core Light Nuclear Core Propulsion Aluminum Leg Leg Aluminum Leg Utility Large Storage Unit Device Seismic Detector Storage Large Storage Unit Weapon Particle Gun Energy Gun Particle Gun Ballistic Cannon Light Cannon Build | -11 -10 ------- Run | Jun Mat Slots Evolved . | . . Power . | . . Propulsion . | . . Utility . | . . Weapon . | . . Parts Attached 14 | 1 13 Power 2 | . 2 Engine 1 | . 1 Core 1 | . 1 Reactor . | . . Propulsion 4 | . 4 Treads . | . . Leg 4 | . 4 Wheel . | . . Hover . | . . Flight . | . . Utility 5 | 1 4 Device 4 | 1 3 Storage 1 | . 1 Processor . | . . Hackware . | . . Protection . | . . Artifact . | . . Weapon 3 | . 3 Energy Gun 2 | . 2 Energy Cannon . | . . Ballistic Gun . | . . Ballistic Cannon 1 | . 1 Launcher . | . . Special Weapon . | . . Impact Weapon . | . . Slashing Weapon . | . . Piercing Weapon . | . . Special Melee Weapon . | . . Unidentified Prototypes . | . . Parts Lost 3 | . 3 Power . | . . Propulsion 1 | . 1 Utility 1 | . 1 Weapon 1 | . 1 Highest Loss Streak 2 | . 2 To Critical Strikes . | . . Average Slot Usage (%) 99 | . 99 Engine 9 | . 9 Core 4 | . 4 Leg 28 | . 28 Device 14 | . 14 Storage 14 | . 14 Energy Gun 21 | . 21 Ballistic Cannon 6 | . 6 Naked Turns . | . . Heaviest Build 32 | 12 32 Greatest Support 20 | 20 20 Greatest Overweight (x) 1 | . 1 Average Overweight (x) . | . . Largest Inventory Capacity 15 | 8 15 Average Capacity 13 | 8 13 Most Carried 15 | 6 15 Average Carried 11 | 6 12 Final Capacity 15 | 8 15 Final Carried 14 | 6 14 Class Distribution -------------------- 71% | Mutant 28% | Scavenger-Mutant Dominant Class ---------------- Mutant | -10/Materials Resources | -11 -10 ----------- Run | Jun Mat Matter Collected 669 | 210 459 Remotely . | . . Salvage Created 637 | 99 538 Parts 43 | 6 37 Haulers Intercepted . | . . Recyclers Shooed 1 | 1 . Parts Field Recycled . | . . Retrieved Matter . | . . Parts Self-Destructed . | . . Prevented . | . . Kills | -11 -10 ------- Run | Jun Mat Combat Hostiles Destroyed 10 | . 10 Guns 8 | . 8 Cannons 2 | . 2 Classes Destroyed 6 | 2 4 Worker 2 | . 2 Tunneler 1 | 1 . Recycler 2 | 1 1 Mechanic 1 | . 1 Watcher 2 | . 2 Grunt 10 | . 10 Best Kill Streak 5 | 2 5 Combat Bots Only 2 | . 2 Max Kills in Single Turn 2 | 1 2 Gunslinging 1 | . 1 Exploded . | . . Melee . | . . Uniques/NPCs Destroyed . | . . Combat | -11 -10 -------- Run | Jun Mat Damage Taken 863 | . 863 Core 254 | . 254 Absorbed by Shields . | . . Core Remaining (%) 100 | 100 . Volleys Fired 58 | 7 51 Largest 2 | 2 2 Hottest 115 | 90 115 Shots Fired 115 | 14 101 Gun 81 | 14 67 Cannon 34 | . 34 Launcher . | . . Special . | . . Kinetic 34 | . 34 Thermal 81 | 14 67 Explosive . | . . Electromagnetic . | . . Robot Hit Streak 10 | 5 10 Robot Miss Streak 6 | 1 6 Penetration Max . | . . Secondary Targets 1 | . 1 Max Gunslinging Chain 1 | . 1 Shots Hit Robots 67 | 10 57 Core Hits 28 | 3 25 Critical Kills . | . . Critical Parts Destroyed . | . . Critical Strikes 2 | . 2 Burn 1 | . 1 Blast 1 | . 1 Melee Attacks . | . . Impact . | . . Slashing . | . . Piercing . | . . Sneak Attacks . | . . Combat Hostiles . | . . Follow-up Attacks . | . . Damage Inflicted 1035 | 121 914 Guns 721 | 121 600 Cannons 311 | . 311 Explosions . | . . Melee . | . . Ramming 3 | . 3 Kinetic 311 | . 311 Thermal 721 | 121 600 Explosive . | . . Electromagnetic . | . . Impact . | . . Slashing . | . . Piercing . | . . Highest Corruption . | . . Average Corruption . | . . Corruption Purged . | . . Corruption Blocked . | . . Overload Shots . | . . Overflow Damage . | . . Projectiles . | . . Explosions . | . . Melee . | . . Knockbacks 3 | . 3 Impact . | . . Kinetic 3 | . 3 Secondary . | . . Self-Inflicted Damage . | . . Shots . | . . Rammed . | . . Targets Rammed 2 | . 2 Kicked 2 | . 2 Crushed . | . . Highest Temperature 376 | 210 376 Average Temperature 97 | 100 97 Received Heat Transfer 534 | . 534 Effects 6 | . 6 Shutdowns 1 | . 1 Interference 3 | . 3 Matter Decay 2 | . 2 Siege Activations . | . . Robots Corrupted . | . . Combat Hostiles . | . . Parts Fried . | . . Impact Corruptions . | . . Robots Melted . | . . Combat Hostiles . | . . Parts Melted 1 | . 1 Heat Transferred 1891 | 322 1569 Parts Sabotaged . | . . Parts Stolen . | . . Parts Stripped . | . . Power Chain Reactions . | . . Missiles Intercepted . | . . Alert | -11 -10 ------- Run | Jun Mat Peak Influence 276 | 10 276 Initial 6 | . 6 Average 99 | 7 103 Maximum Alert Level 1 | . 1 Low Security (%) 87 | 100 87 Level 1 12 | . 12 Level 2 . | . . Level 3 . | . . Level 4 . | . . Level 5 . | . . High Security . | . . Max Security . | . . Squads Dispatched 4 | . 4 Investigation 2 | . 2 Extermination . | . . Reinforcement 2 | . 2 Assault . | . . Garrison . | . . Intercept . | . . Searches Triggered . | . . Construction Impeded . | . . Haulers Reinforced . | . . Active Scanning Responses . | . . Cargo Convoy Interrupts . | . . Stealth | -11 -10 --------- Run | Jun Mat Distress Signals 2 | . 2 Communications Jammed . | . . Distress Signals . | . . Times Spotted 20 | . 20 Peak Tracking Total 5 | . 5 Tactical Retreats 3 | . 3 Traps | -11 -10 ------- Run | Jun Mat Traps Triggered 2 | . 2 Indirectly . | . . Trap Hack Attempts . | . . Triggered . | . . Disarmed . | . . Reprogrammed . | . . Reused . | . . Traps Extracted . | . . Installed . | . . Triggered . | . . Machines | -11 -10 ---------- Run | Jun Mat Machines Disabled 1 | . 1 Max in Single Turn 1 | . 1 Machines Repaired . | . . Machines Sabotaged . | . . Overloaded Fab Kills . | . . Hacking | -11 -10 --------- Run | Jun Mat Machines Accessed 2 | . 2 Terminals 2 | . 2 Fabricators . | . . Repair Stations . | . . Recycling Units . | . . Scanalyzers . | . . Garrison Access . | . . Total Hacks 9 | . 9 Successful 5 | . 5 Failed 4 | . 4 Catastrophic 1 | . 1 Database Lockouts . | . . Manual 9 | . 9 Terminals 9 | . 9 Fabricators . | . . Repair Stations . | . . Recycling Units . | . . Scanalyzers . | . . Garrison Access . | . . Terminal Hacks 4 | . 4 Terminal Index 1 | . 1 Maintenance Status 1 | . 1 Hauler Manifests 1 | . 1 Zone Layout 1 | . 1 Fabricator Hacks . | . . Repair Station Hacks . | . . Recycling Unit Hacks . | . . Scanalyzer . | . . Garrison Access Hacks . | . . Unauthorized Hacks 1 | . 1 Terminals 1 | . 1 Botnet 1 | . 1 Fabricators . | . . Repair Stations . | . . Recycling Units . | . . Scanalyzers . | . . Garrison Access . | . . Data Cores Recovered . | . . Used . | . . Hacking Detections 2 | . 2 Full Trace Events . | . . Feedback Events . | . . Feedback Blocked . | . . Robot Schematics Acquired . | . . Robots Built . | . . Authchips . | . . Time . | . . Total Robot Build Rating . | . . Part Schematics Acquired . | . . Parts Built . | . . Authchips . | . . Time . | . . Total Part Build Rating . | . . Parts Repaired . | . . Time . | . . Parts Recycled . | . . Recycled Matter . | . . Retrieved Matter . | . . Retrieved Components . | . . Parts Scanalyzed . | . . Part Schematics Acquired . | . . Parts Damaged . | . . Bothacking | -11 -10 ------------ Run | Jun Mat Used RIF Installer . | . . Robots Hacked . | . . Non-combat . | . . Combat . | . . Robot Hacks Applied . | . . Relay Couplers Released . | . . Fabnet Peak Effective % . | . . Robots Rewired . | . . Allies Hacked . | . . Hacks Repelled . | . . Allies | -11 -10 -------- Run | Jun Mat Total Allies . | . . Largest Group . | . . Highest-Rated Group . | . . Highest-Rated Ally . | . . Total Orders . | . . Ally Attacks . | . . Total Damage . | . . Kills . | . . Allies Corrupted . | . . Allies Melted . | . . Intel | -11 -10 ------- Run | Jun Mat Robot Analysis Total . | . . Derelict Logs Recovered . | . . Drone Launches . | . . Drone Recoveries . | . . Exploration | -11 -10 ------------- Run | Jun Mat Turns Passed 997 | 45 952 Spaces Moved 454 | 19 435 Core . | . . Treads . | . . Legs 454 | 19 435 Wheels . | . . Hover . | . . Flight . | . . Fastest Speed 120 | 120 120 Average Speed 161 | 120 163 Slowest Speed 190 | 120 190 Overloaded Moves . | . . Propulsion Burnouts . | . . Robots Hopped . | . . Cave-ins Triggered . | . . Exploration Rate (%) 32 | 2 62 Regions Visited 1 Branch Regions . Pre-discovered Areas . | . . Known Exits Taken . | . . Unknown Exits Taken 1 | 1 . Scrap Searched . | . . Spaces Dug . | . . Terrain Destroyed . | . . Melee . | . . Projectile . | . . AOE . | . . Terrain Rammed . | . . Walls Destroyed . | . . Machines Disabled . | . . Actions | -11 -10 --------- Run | Jun Mat Total 609 | 26 583 Wait 39 | . 39 Move 453 | 18 435 Hop . | . . Pick Up 23 | . 23 Fast Attach 2 | 1 1 Attach 3 | . 3 Detach . | . . Swap 9 | . 9 Drop 20 | . 20 Fire 58 | 7 51 Melee . | . . Ram . | . . Kick 2 | . 2 Crush . | . . Escape Stasis . | . . Rewire . | . . Trap . | . . Miscellaneous . | . . Route ------- -11/Junkyard -10/Materials (discovered 1 exit: [*Mat]) History --------- Turn | Location | Event 23 | -11/Junkyard | Discovered new exit (range 3) 46 | -11/Junkyard | Entered Materials 305 | -10/Materials | Build established: Mutant 389 | -10/Materials | Discovered new exit (range 4) 654 | -10/Materials | Core integrity fell below 50% 709 | -10/Materials | Core integrity fell below 20% 998 | -10/Materials | Destroyed by G-34 Mercenary with Small Laser Last Messages --------------- 00953_ Acquired 12 matter. 00953_ O-16 Technician sends out distress signal. 00953_ O-16 Technician: "IFF HANDSHAKE FAILED. SECURING TERMINAL." 00958_ ALERT: Hostiles spotted, dispatching reinforcements to Terminal M007. 00958_ K-01 Serf cleans the Neutrino Reactor. 00959_ G-34 Mercenary destroyed. 00961_ K-01 Serf collects debris. 00962_ Dropped Aluminum Leg. 00963_ Acquired 18 matter. 00965_ Kicked K-01 Serf out of the way. 00967_ Dropped Aluminum Leg. 00967_ Acquired Aluminum Leg. 00973_ Dropped Lgt. Treads. 00982_ Acquired Huge Storage Unit. 00985_ R-06 Scavenger inserts Signal Interpreter into recycling unit. 00986_ Recycling unit begins recycling process. 00988_ R-06 Scavenger inserts Lgt. Ion Engine into recycling unit. 00991_ R-06 Scavenger inserts Hover Unit into recycling unit. 00992_ Recycling unit begins recycling process. 00994_ R-06 Scavenger inserts Hover Unit into recycling unit. Map ----- +----------------------------------------------------+ | | | | | | | | | | | | | | | | | #????????????????????????????????????????????????? | | !#???????????????????????????????????????????????? | | #???????????????????????????????????????????????? | | #########???????????????????????????????????????? | | + #????????????#####??????????????????????? | | # ##### #???????????? #??????????????????????? | | # #???# #???????????? #??????????????????????? | | ## #???# #???????????? #??????????????????????? | | ?# #???# #??########### #??????????????????????? | | ?# #???# #??# """ # #??????????????????????? | | ##+##### #??# "R" # #????????+###??????????? | | # #??# " " """ # ######## ?????????? | | # #### """=#%= |] ?????????? | | # + """%+!* |] ?????????? | | "" """ + !## !% #[=T ^ #??????????? | | "" """ # *%## =#% #??????????? | | "" """ # ==## # """ """ #??????????? | | "" """ # ############**@ """ ""??????????????? | | # #??????????#**! """ ""??????????????? | | ######## ########???#**! """ "???????????????? | | ???????# #???# ???????????????? | | ???????# #???# r g ???????????????? | | ???????# #???# % ??????????????? | | ???????######## #???##T#"Y"#### #??????????????? | | ??????????????# #????###"""#???? #?????????????? | | ??????????????# #???????####????? ?????????????? | | ???????######?# #??????????????????????????????? | | ???????# ?# #??????????????????????????????? | | ???????# """ # #??????????????????????????????? | | ???????# """ # #??????????????????????????????? | | ???????# """ + ##########?????????????????????? | | ???????# # = # #?????????????????????? | | ???????# #!= #""" #?????????????????????? | | ???????######## =!#""" #?????????????????????? | | ######## =%* * # "" #?????????????????????? | | # # ==!= +% #?????????????????????? | | #[ =# ! * [% #""" #?????????????????????? | | #* =+ #### #""" #?????????????????????? | | #! # #??# #""" #?????????????????????? | | # # #??# # #"" #??# #?# | | # # #??# ########/#" #??# #?# | | ######## #??# #??????? #### ##??# #?# ###### | +----------------------------------------------------+ Best States ------------- Heat Dissipation 39 Energy Generation 14 Energy Capacity 250 Matter Stores 300 Matter Capacity 300 Sight Range 16 Terrain Scan Density 10 Evasion (%) 55 Item Schematics ----------------- None Robot Schematics ------------------ None Fabricated ------------ Nothing Alien Tech Used ----------------- None Achievements -------------- None Challenges ------------ None Game ------ Seed ShadeLobotomyWand Manual? 0 Play Time 00:15:58 Cumulative 63.8 hours Start 2023.12.16 @ 07:28:09 End 2023.12.16 @ 08:05:39 Sessions 1 Manual Loads 0 Difficulty Rogue Special Mode None Game No. 68 Rogue 68 Adventurer 0 Explorer 0 Win Type - Total 0 Types 0/0/0/0/0/0/0/0/0 Lore% 31 Gallery% 36 Achievement% 31 Wizard Run 0 Options --------- ASCII 0 Keyboard 0 Movement Numpad Keybinds 0 Fullscreen 1 Font 24/Proggy Map View 113x50 Tactical HUD 1 Map Filters NONE Filters NONE Steam 1 RUN: 96bba45a-4261-4de0-be4e-74fcce784bed